bitfinex/quotes_ETHUSD_20241103
["timestamp","ask_amount","ask_price","bid_price","bid_amount"]
[1730622898511,0.85271224,2451.0,2450.5,0.2269266]
[1730622899104,0.85271224,2451.1,2450.6,0.08160511]
[1730622899731,2.72751419,2451.2,2450.6,1.08124585]
[1730622899732,3.58022643,2451.2,2450.6,1.08124585]
[1730622900213,3.58022643,2451.2,2450.6,0.99964074]
[1730622900415,1.81155038,2451.1,2450.6,0.99964074]
[1730622900631,3.58022643,2451.2,2450.6,0.99964074]
[1730622901915,7.65987643,2451.2,2450.6,0.99964074]
[1730622902132,7.65987643,2451.2,2450.7,0.42265673]
[1730622903639,0.95851292,2451.1,2450.7,0.42265673]
[1730622903807,0.85271224,2451.1,2450.7,0.42265673]
[1730622904323,7.65987643,2451.2,2450.7,0.42265673]
[1730622904645,11.73960643,2451.2,2450.7,0.42265673]
[1730622905006,4.07981,2451.1,2450.7,0.42265673]
[1730622905863,4.0798,2451.1,2450.7,0.42265673]
[1730622907153,6.20787756,2451.6,2450.8,1.5268]
[1730622907331,6.92759832,2453.0,2452.2,3.0]
[1730622907332,0.0609538,2453.0,2452.2,3.0]
[1730622907538,0.0609538,2453.0,2452.2,2.72751419]
[1730622907539,4.07714,2452.7,2452.2,2.72751419]
[1730622907737,4.07739,2452.6,2452.2,2.72751419]
[1730622907954,8.1542,2452.8,2452.2,2.72751419]
[1730622908245,0.0609538,2453.0,2452.5,2.72751419]
[1730622908246,4.1376838,2453.0,2452.5,2.72751419]
[1730622908450,4.07699,2452.8,2452.5,2.72751419]
[1730622908604,4.484939,2452.7,2452.2,2.72751419]
[1730622908810,0.407699,2452.7,2452.2,2.72751419]
[1730622909251,4.484839,2452.7,2452.2,2.72751419]
[1730622909613,4.07773,2452.4,2452.2,2.72751419]
[1730622909921,8.15503,2452.5,2452.2,2.72751419]
[1730622910130,0.407747,2452.4,2452.2,2.72751419]
[1730622912354,4.07733,2452.6,2452.2,2.72751419]
[1730622913166,0.407699,2452.7,2452.5,2.72751419]
[1730622917047,4.484919,2452.7,2452.5,2.72751419]
[1730622917247,4.484919,2452.7,2452.2,2.72751419]
[1730622917248,4.0776,2452.5,2452.2,2.72751419]
[1730622917565,4.07756,2452.5,2452.2,2.72751419]
[1730622918131,8.7616319,2452.6,2452.2,2.72751419]
[1730622918358,4.0773,2452.6,2452.5,2.72751419]
[1730622918568,4.0776,2452.5,2452.2,2.72751419]
[1730622920971,4.07749,2452.5,2452.2,2.72751419]
[1730622921189,4.0773,2452.6,2452.2,2.72751419]
[1730622921333,4.07748,2452.5,2452.2,2.72751419]
[1730622922354,4.0773,2452.6,2452.2,2.72751419]
[1730622922556,4.6842299,2452.6,2452.2,2.72751419]
[1730622922751,8.7616899,2452.6,2452.2,2.72751419]
[1730622923073,4.6842299,2452.6,2452.2,2.72751419]
[1730622923278,4.07748,2452.5,2452.2,2.72751419]
[1730622925166,4.6842299,2452.6,2452.2,2.72751419]
[1730622925167,8.7616699,2452.6,2452.2,2.72751419]
[1730622925371,4.6842299,2452.6,2452.2,2.72751419]
[1730622925893,8.7616599,2452.6,2452.2,2.72751419]
[1730622926078,4.6842299,2452.6,2452.2,2.72751419]
[1730622926404,8.7616199,2452.6,2452.2,2.72751419]
[1730622926576,4.07748,2452.5,2452.2,2.72751419]
[1730622926900,0.87617099,2452.5,2452.2,2.72751419]
[1730622927194,4.07765,2452.4,2452.2,2.72751419]
[1730622927399,4.95365099,2452.5,2452.2,2.72751419]
[1730622927760,4.95375099,2452.5,2452.2,2.72751419]
[1730622929105,4.07764,2452.4,2452.2,2.72751419]
[1730622929402,4.9807511,2452.4,2452.2,2.72751419]
[1730622930366,4.0778,2452.3,2451.9,6.80587419]
[1730622931007,4.0778,2452.3,2451.9,2.72751419]
[1730622932503,4.0778,2452.3,2451.9,6.80594419]
[1730622934007,4.07751,2452.5,2451.9,6.88750342]
[1730622934181,0.407751,2452.4,2451.9,6.88750342]
[1730622934694,4.485431,2452.4,2451.9,6.88750342]
[1730622937800,4.485431,2452.4,2452.0,4.07829]
[1730622942683,4.07768,2452.4,2452.0,4.07829]
[1730622945819,4.07768,2452.4,2452.1,1.21981026]
[1730622948095,4.07733,2452.6,2452.3,1.21981026]
[1730622948303,4.07759,2452.5,2452.3,1.21981026]
[1730622948610,0.407759,2452.5,2452.3,1.21981026]
[1730622948798,4.07757,2452.5,2452.3,1.21981026]
[1730622949116,4.07763,2452.4,2452.1,1.21981026]
[1730622951612,4.07763,2452.4,2452.1,1.39727268]
[1730622951994,4.07763,2452.4,2452.1,1.21981026]
[1730622952292,4.92809805,2452.4,2452.2,0.17746242]
[1730622952495,5.82866486,2452.4,2452.3,0.17746242]
[1730622953027,5.82866486,2452.4,2452.3,0.17776635]
[1730622953326,6.25422676,2452.4,2452.3,0.17776635]
[1730622953633,6.67974131,2452.4,2452.3,0.17776635]
[1730622956589,6.67974131,2452.4,2452.3,0.17772296]
[1730622957795,6.67974131,2452.4,2452.3,0.17772811]
[1730622960224,6.67974131,2452.4,2452.1,1.21981026]
[1730622960432,0.85626447,2452.2,2452.1,1.21981026]
[1730622960629,0.85626447,2452.2,2452.1,1.68200584]
[1730622962618,6.66155475,2452.2,2452.1,0.46219558]
[1730622962933,8.1565,2452.1,2451.8,0.28463416]
[1730622963120,0.85657673,2451.9,2451.7,2.84431026]
[1730622963321,0.856744,2451.8,2451.7,2.84431026]
[1730622963544,1.2848651,2451.9,2451.7,3.30674848]
[1730622963545,0.856744,2451.9,2451.7,3.30674848]
[1730622963714,0.856744,2451.9,2451.8,0.46243822]
[1730622963919,5.3631651,2452.0,2451.8,0.46243822]
[1730622964132,5.3631651,2452.0,2451.9,0.17785143]
[1730622964453,1.2848651,2452.0,2451.9,1.39766169]
[1730622966246,1.2848651,2452.0,2451.9,1.21981026]
[1730622966424,1.2848651,2452.0,2451.9,1.3976036]
[1730622967052,1.2848651,2452.0,2451.9,1.21981026]
[1730622967818,5.3631651,2452.0,2451.8,0.17774407]
[1730622968158,0.85589,2451.9,2451.7,2.84431026]
[1730622968320,0.85589,2451.9,2451.8,0.17774446]
[1730622968629,0.85589,2451.9,2451.7,2.84431026]
[1730622969818,0.85589,2451.9,2451.8,0.17768428]
[1730622970566,0.85589,2452.1,2451.8,0.17768428]
[1730622970724,0.85589,2452.1,2451.9,1.39749454]
[1730622970945,4.93393,2452.2,2452.0,0.17768428]
[1730622971267,5.3629051,2452.2,2452.1,1.21981026]
[1730622975755,4.07804,2452.2,2452.1,1.21981026]
[1730622976446,8.15611,2452.2,2451.9,1.39744797]
[1730622976772,4.07804,2452.2,2452.0,0.1776375]
[1730622977267,4.07804,2452.2,2451.9,1.21981026]
[1730622977463,4.07804,2452.2,2452.0,0.17763296]
[1730622978542,0.85554656,2452.1,2452.0,0.17763296]
[1730622978872,0.85554656,2452.1,2451.9,1.21981026]
[1730622979367,0.85554656,2452.1,2452.0,0.17764006]
[1730622980672,0.85554656,2452.1,2452.0,0.17763771]
[1730622980839,0.85554656,2452.1,2451.9,1.21981026]
[1730622981035,0.85554656,2452.1,2452.0,0.17764412]
[1730622981775,0.85554656,2452.2,2452.0,4.25586412]
[1730622981933,0.85554656,2452.2,2452.1,1.39743746]
[1730622982677,0.85554656,2452.2,2452.1,1.21981026]
[1730622983432,5.36112985,2452.3,2452.1,1.21981026]
[1730622984680,0.85558289,2452.2,2452.1,1.21981026]
[1730622985379,0.85559463,2452.2,2452.1,1.21981026]
[1730622986161,0.85559463,2452.2,2452.1,5.29794026]
[1730622986349,0.85559463,2452.2,2452.1,5.47569561]
[1730622986551,0.85559463,2452.2,2452.1,1.21981026]
[1730622988458,1.28331985,2452.3,2452.1,1.21981026]
[1730622989964,0.85567155,2452.2,2452.1,1.21981026]
[1730622990164,0.85568138,2452.2,2452.1,5.29794026]
[1730622990368,0.85568138,2452.2,2452.1,5.47571818]
[1730622991199,0.85568138,2452.2,2452.1,1.39758818]
[1730622992861,0.85568138,2452.2,2452.1,5.47571818]
[1730622994268,0.85568138,2452.2,2452.1,1.39758818]
[1730622995785,0.85568138,2452.2,2452.1,5.47571818]
[1730622998176,0.85568138,2452.2,2452.1,5.29794026]
[1730622998604,0.85568138,2452.2,2452.1,5.47574052]
[1730622998912,0.85568138,2452.2,2452.1,1.39761052]
[1730623000501,0.85568138,2452.2,2452.1,5.47574052]
[1730623000709,0.85568138,2452.2,2452.1,1.39761052]
[1730623004781,0.85568138,2452.2,2452.1,0.17780026]
[1730623005657,0.85568138,2452.2,2452.1,0.22780026]
[1730623006619,0.85568138,2452.2,2452.1,1.44761052]
[1730623008824,0.85568138,2452.2,2452.1,1.26981026]
[1730623009043,1.28331985,2452.2,2452.1,1.44764054]
[1730623009222,0.85588912,2452.2,2452.1,1.44763982]
[1730623011563,0.85588912,2452.2,2452.1,1.26981026]
[1730623012429,1.28331985,2452.3,2452.1,1.26981026]
[1730623013356,1.28331985,2452.2,2452.1,1.26981026]
[1730623014246,1.23331985,2452.2,2452.1,1.21981026]
[1730623014965,1.71109313,2452.3,2452.1,1.39686662]
[1730623015457,1.71109313,2452.3,2452.1,1.21981026]
[1730623015960,1.71109313,2452.2,2452.1,1.21981026]
[1730623017986,1.71109313,2452.2,2452.0,0.28454565]
[1730623018266,7.83995988,2452.1,2452.0,0.28454565]
[1730623018479,5.69853,2452.1,2452.0,0.28454565]
[1730623020292,5.69853,2452.1,2451.7,1.21981026]
[1730623020293,4.07854,2451.9,2451.7,1.21981026]
[1730623020435,5.79060631,2451.9,2451.7,1.21981026]
[1730623023470,1.28304198,2451.8,2451.7,1.21981026]
[1730623023681,1.71206631,2451.9,2451.7,6.20019805]
[1730623023682,1.28304198,2451.9,2451.7,6.20019805]
[1730623023877,1.28304198,2451.9,2451.8,4.07863]
[1730623024078,1.28304198,2451.9,2451.7,7.77197805]
[1730623024279,0.8551776,2451.8,2451.7,7.77197805]
[1730623025572,0.8551776,2451.9,2451.8,4.07863]
[1730623025785,0.8551776,2451.9,2451.8,5.07827074]
[1730623026076,0.8551776,2452.0,2451.8,5.07827074]
[1730623026372,0.8551776,2452.0,2451.9,1.21981026]
[1730623026870,0.85504786,2452.0,2451.9,1.21981026]
[1730623027062,1.28304198,2452.1,2451.9,1.21981026]
[1730623027371,0.85503608,2452.0,2451.9,1.64246699]
[1730623029587,0.85503608,2452.1,2451.9,5.72092699]
[1730623029777,1.28304198,2452.2,2452.0,4.0783]
[1730623029778,0.85503608,2452.2,2452.0,4.0783]
[1730623030072,0.85503608,2452.3,2452.1,5.29794026]
[1730623030247,0.85503608,2452.3,2452.2,4.07797]
[1730623030450,0.85503608,2452.4,2452.2,4.07797]
[1730623030775,0.85503608,2452.4,2452.3,1.21981026]
[1730623033377,0.85503608,2452.4,2452.3,1.21831754]
[1730623035050,4.93251608,2452.5,2452.3,1.21831754]
[1730623036172,0.85503608,2452.5,2452.3,1.21831754]
[1730623039354,0.85503608,2452.5,2452.3,5.29609754]
[1730623041354,0.85503608,2452.6,2452.3,1.21831754]
[1730623041983,4.93241608,2452.6,2452.3,1.21831754]
[1730623042755,0.85503608,2452.6,2452.3,1.21831754]
[1730623044462,4.93237608,2452.6,2452.3,1.21831754]
[1730623046463,0.85503608,2452.6,2452.3,5.29601754]
[1730623046667,0.85503608,2452.6,2452.3,1.21831754]
[1730623048199,4.93233608,2452.6,2452.3,1.21831754]
[1730623049007,4.07802,2452.2,2451.8,4.07862]
[1730623049165,0.8541959,2452.2,2451.7,4.07866]
[1730623049501,4.9322659,2452.2,2451.7,4.07866]
[1730623049835,0.8541959,2452.1,2451.7,4.07866]
[1730623050101,4.9322659,2452.2,2451.8,1.21981026]
[1730623050401,4.9322659,2452.2,2451.8,5.29843026]
[1730623050570,0.8541959,2452.2,2452.0,1.21981026]
[1730623050895,0.8541959,2452.3,2452.0,5.29804026]
[1730623052566,0.8541959,2452.4,2452.0,5.29804026]
[1730623053811,0.8541959,2452.4,2452.0,1.21981026]
[1730623053812,0.8541959,2452.3,2452.0,1.21981026]
[1730623054576,0.8541959,2452.3,2452.0,5.29810026]
[1730623056404,0.8541959,2452.3,2452.2,1.21981026]
[1730623056591,0.8541959,2452.4,2452.2,1.21981026]
[1730623056917,0.8541959,2452.4,2452.0,5.01593203]
[1730623056918,4.9318359,2452.4,2452.0,6.23574229]
[1730623057477,4.9318359,2452.4,2452.0,1.21981026]
[1730623057814,9.0096059,2452.4,2452.0,1.21981026]
[1730623057974,4.9318359,2452.4,2452.0,1.21981026]
[1730623058874,0.8541959,2452.4,2452.0,5.29801026]
[1730623059828,0.8541959,2452.4,2452.2,1.21981026]
[1730623062727,4.9318459,2452.4,2452.2,1.21981026]
[1730623062907,0.8541959,2452.4,2452.2,1.21981026]
[1730623064322,0.8541959,2452.5,2452.2,1.21981026]
[1730623064532,0.8541959,2452.4,2452.2,1.21981026]
[1730623064709,0.8541959,2452.5,2452.2,2.32481695]
[1730623065523,0.8541959,2452.5,2452.2,6.40277695]
[1730623066096,0.8541959,2452.6,2452.4,1.21981026]
[1730623066296,0.8541959,2452.6,2452.4,5.29743026]
[1730623066541,0.8541959,2452.6,2452.4,12.09695116]
[1730623066688,0.8541959,2452.6,2452.4,12.01540295]
[1730623066890,0.8541959,2452.7,2452.4,12.01534295]
[1730623067295,0.8541959,2452.7,2452.4,7.93778295]
[1730623068593,0.8541959,2452.7,2452.4,12.01533295]
[1730623068791,0.8541959,2452.7,2452.4,7.93778295]
[1730623069036,0.8541959,2452.7,2452.4,12.01534295]
[1730623069203,0.8541959,2452.7,2452.4,7.93778295]
[1730623069403,0.8541959,2452.7,2452.5,4.07744]
[1730623071013,0.8541959,2452.7,2452.6,4.0773]
[1730623071910,0.8541959,2452.8,2452.6,4.0773]
[1730623072697,0.8541959,2452.8,2452.7,1.21981026]
[1730623072899,0.8541959,2452.9,2452.8,5.66937]
[1730623073132,0.9151497,2453.0,2452.9,4.0768]
[1730623073330,0.0609538,2453.0,2452.9,6.41089405]
[1730623073808,0.0609538,2453.0,2452.9,6.58765832]
[1730623074133,0.0609538,2453.0,2452.9,6.49241758]
[1730623074338,0.0609538,2453.0,2452.9,6.66912266]
[1730623074545,0.0609538,2453.0,2452.9,11.02231758]
[1730623074695,0.0609538,2453.0,2452.9,10.94079405]
[1730623074896,0.0609538,2453.0,2452.9,11.4001386]
[1730623075114,0.0609538,2453.0,2452.9,13.16456629]
[1730623075321,0.0609538,2453.0,2452.9,11.4001386]
[1730623075514,0.0609538,2453.0,2452.9,12.10546314]
[1730623076381,0.0609538,2453.0,2452.9,12.10499292]
[1730623076834,0.0609538,2453.0,2452.9,13.16223194]
[1730623077231,0.0609538,2453.0,2452.9,12.10499292]
[1730623077637,4.76,2453.9,2453.8,4.07531]
[1730623077880,4.76,2454.0,2453.8,5.29512026]
[1730623078041,0.9151497,2454.2,2453.8,1.21981026]
[1730623078042,4.76,2453.9,2453.8,1.21981026]
[1730623078743,4.76,2453.9,2453.8,5.29512026]
[1730623079979,4.71,2453.9,2453.8,5.29512026]
[1730623081984,4.71,2453.9,2453.7,4.07534]
[1730623082441,4.71,2453.9,2453.7,5.01242403]
[1730623083063,4.71,2453.9,2453.7,9.08780403]
[1730623083282,4.71,2453.9,2453.7,5.01242403]
[1730623083661,4.71,2453.9,2453.7,9.08780403]
[1730623083999,4.1356938,2454.2,2453.8,4.07531]
[1730623084349,4.1356938,2454.2,2453.7,9.08780403]
[1730623084583,4.1356938,2454.2,2453.7,5.01242403]
[1730623085151,4.1356938,2454.2,2453.7,9.08781403]
[1730623085351,4.1356938,2454.2,2453.7,5.01242403]
[1730623085790,4.1356938,2454.2,2453.8,4.07529]
[1730623086491,0.0609538,2454.2,2453.8,6.32585269]
[1730623087457,0.0609538,2454.2,2453.8,5.10604243]
[1730623087701,0.0609538,2454.2,2453.6,1.21981026]
[1730623087852,4.07493,2454.1,2453.6,1.21981026]
[1730623088883,4.07499,2454.0,2453.5,4.0757]
[1730623089056,5.71522,2453.9,2453.4,6.82567026]
[1730623089260,5.71522,2453.9,2453.4,5.29577026]
[1730623089583,5.71522,2453.9,2453.4,0.93718003]
[1730623089584,4.07532,2453.8,2453.4,0.93718003]
[1730623090193,4.07532,2453.8,2453.3,0.08151149]
[1730623090384,4.07557,2453.7,2453.2,9.37232026]
[1730623090956,4.07557,2453.7,2453.2,5.29603026]
[1730623091189,1.64,2453.9,2453.3,4.07612]
[1730623091391,4.07532,2453.8,2453.3,4.07612]
[1730623091582,4.07532,2453.8,2453.3,5.17516503]
[1730623094512,4.07532,2453.8,2453.4,4.07596]
[1730623100821,8.15072,2453.8,2453.4,4.07596]
[1730623100983,4.07532,2453.8,2453.4,4.07596]
[1730623104224,4.07532,2453.8,2453.3,1.09904503]
[1730623104378,1.64,2453.9,2453.0,4.07654]
[1730623104379,4.07581,2453.5,2453.0,4.07654]
[1730623104579,4.07581,2453.5,2453.1,4.07645]
[1730623105014,4.07581,2453.5,2453.0,5.29645026]
[1730623105724,4.07606,2453.4,2453.0,1.21981026]
[1730623105907,5.65276,2453.4,2452.9,4.07675]
[1730623106396,4.07614,2453.3,2452.9,5.17542803]
[1730623109418,4.07614,2453.3,2452.9,1.09867803]
[1730623115550,4.07644,2453.2,2452.8,1.21981026]
[1730623115704,4.0764,2453.2,2452.8,1.21981026]
[1730623115909,2.4294419,2453.4,2452.8,1.21981026]
[1730623116108,4.07648,2453.1,2452.8,1.21981026]
[1730623116410,4.07674,2453.0,2452.7,1.6132]
[1730623116613,4.07674,2453.0,2452.6,1.21981026]
[1730623116614,4.07674,2453.0,2452.6,5.29709026]
[1730623117045,4.07681,2452.9,2452.5,5.69057]
[1730623117341,4.07681,2452.9,2452.5,6.38160803]
[1730623117509,1.5767,2453.0,2452.5,10.45898803]
[1730623117704,5.65334,2453.0,2452.5,6.38160803]
[1730623117909,5.65334,2453.0,2452.6,4.07727]
[1730623119249,5.65334,2453.0,2452.5,6.38160803]
[1730623119646,5.65334,2453.0,2452.5,10.45899803]
[1730623120448,5.65334,2453.0,2452.5,6.38160803]
[1730623120609,4.07687,2452.9,2452.5,6.38160803]
[1730623120817,4.07687,2452.9,2452.5,0.69103803]
[1730623121044,4.0768,2452.9,2452.3,5.69088]
[1730623121229,4.07698,2452.8,2452.3,9.76856]
[1730623122530,4.07698,2452.8,2452.3,5.69088]
[1730623123567,4.07697,2452.8,2452.4,4.07756]
[1730623123737,4.07697,2452.8,2452.4,5.18453972]
[1730623126364,5.65286,2453.3,2452.8,5.69015]
[1730623126657,5.65261,2453.5,2452.8,5.69015]
[1730623126815,4.07626,2453.3,2452.8,1.6132]
[1730623127020,4.0765,2453.1,2452.6,4.0773]
[1730623127262,4.07625,2453.3,2452.6,7.00948131]
[1730623127554,4.07625,2453.3,2452.8,4.07688]
[1730623127757,4.07625,2453.3,2452.9,4.07678]
[1730623129560,4.92904829,2453.3,2452.9,4.07678]
[1730623129863,4.07625,2453.3,2452.9,4.07678]
[1730623130064,4.92904829,2453.3,2452.9,4.07678]
[1730623130357,4.92904829,2453.3,2452.9,5.02229512]
[1730623134226,0.85279829,2453.2,2452.9,5.02229512]
[1730623135733,4.07648,2453.1,2452.7,4.07707]
[1730623137148,6.57867829,2453.1,2452.7,4.07707]
[1730623137355,6.57867829,2453.1,2452.6,1.6132]
[1730623137356,6.57867829,2453.1,2452.6,5.69046]
[1730623137541,6.57867829,2453.1,2452.6,4.07726]
[1730623137736,6.57867829,2453.1,2452.4,5.69614]
[1730623137737,0.85279829,2453.0,2452.4,5.69614]
[1730623137986,4.07715,2452.7,2452.3,4.07773]
[1730623138278,5.72655,2452.7,2452.3,4.07773]
[1730623138838,1.6494,2452.7,2452.3,4.07773]
[1730623139380,4.07703,2452.8,2452.4,4.07763]
[1730623140141,8.15412,2452.8,2452.3,4.07777]
[1730623140340,5.27058157,2452.8,2452.3,4.07777]
[1730623140540,5.27058157,2452.8,2452.2,5.69649]
[1730623140541,1.6494,2452.6,2452.2,5.69649]
[1730623141237,5.72674,2452.6,2452.1,4.07802]
[1730623141663,5.72674,2452.6,2452.2,0.17656263]
[1730623141972,1.70559658,2453.0,2452.2,0.17656263]
[1730623141973,0.85279829,2453.2,2452.9,1.6186]
[1730623142272,0.85279829,2453.2,2452.9,5.6954]
[1730623142451,0.85279829,2453.3,2452.9,5.6954]
[1730623142651,6.20797572,2453.4,2452.9,5.6954]
[1730623142871,0.85279829,2453.3,2452.9,5.6954]
[1730623145065,0.85279829,2453.3,2452.9,5.69532]
[1730623145390,7.77728652,2453.3,2452.9,5.69532]
[1730623146082,3.70114652,2453.3,2452.9,5.69532]
[1730623146267,2.50219829,2453.3,2452.9,5.69532]
[1730623149163,0.85279829,2453.2,2452.9,5.69532]
[1730623149949,0.85279829,2453.2,2452.9,5.6953]
[1730623150356,0.85279829,2453.1,2452.9,5.6953]
[1730623150663,0.85279829,2453.2,2452.9,5.6953]
[1730623150868,0.85279829,2453.2,2453.0,4.07661]
[1730623151311,0.85279829,2453.2,2452.9,1.6186]
[1730623151622,0.85279829,2453.2,2452.9,5.69528]
[1730623153388,0.85279829,2453.2,2452.9,9.772]
[1730623153588,0.85279829,2453.2,2452.9,5.69528]
[1730623154093,0.85279829,2453.2,2453.0,4.07663]
[1730623154645,0.85279829,2453.2,2452.9,5.69528]
[1730623154787,0.85279829,2453.2,2452.9,9.77196]
[1730623154987,0.85279829,2453.2,2452.9,5.69528]
[1730623156632,0.85279829,2453.2,2452.8,4.07696]
[1730623156931,0.85279829,2453.2,2452.9,4.25347642]
[1730623157084,0.85279829,2453.2,2452.9,4.0768]
[1730623157284,0.85279829,2453.2,2452.9,4.07672]
[1730623159643,0.85279829,2453.2,2453.0,4.07653]
[1730623162555,0.85279829,2453.2,2452.9,4.07679]
[1730623164139,0.85279829,2453.2,2453.0,0.17664586]
[1730623164447,0.85279829,2453.1,2452.7,4.35973171]
[1730623164601,0.85279829,2453.1,2452.8,4.25357851]
[1730623164938,0.85279829,2453.1,2452.8,4.07689]
[1730623167336,2.43989829,2453.1,2452.8,4.07694]
[1730623168301,2.43989829,2453.1,2452.7,4.07704]
[1730623168302,4.92953829,2453.0,2452.6,5.6113]
[1730623168607,4.92953829,2453.0,2452.7,0.17675646]
[1730623168608,0.85279829,2452.8,2452.7,0.17675646]
[1730623168929,7.36926658,2453.1,2452.6,4.07723]
[1730623168930,9.74024,2453.1,2452.6,4.07723]
[1730623169958,0.85521789,2452.8,2452.6,4.07723]
[1730623172853,0.85521789,2452.8,2452.5,4.07734]
[1730623173052,0.85521789,2452.9,2452.8,4.07697]
[1730623173252,0.85521789,2453.0,2452.9,4.0768]
[1730623173964,0.85521789,2453.0,2452.9,4.25356056]
[1730623174167,0.85521789,2453.0,2452.9,4.25356034]
[1730623174662,1.28282684,2453.2,2452.9,4.25356034]
[1730623174663,0.85521789,2453.1,2452.9,4.25356034]
[1730623174867,0.85521789,2453.1,2452.9,4.0768]
[1730623175460,0.85521789,2453.1,2452.9,4.7934809]
[1730623178248,0.85521789,2453.1,2452.9,4.0768]
[1730623182358,0.85521789,2453.0,2452.9,4.0768]
[1730623182568,0.85521789,2453.0,2452.9,4.25359836]
[1730623182870,0.85521789,2453.0,2452.9,4.25359875]
[1730623187575,0.85521789,2453.0,2452.9,0.17679875]
[1730623188913,1.5871,2453.1,2452.9,0.17679875]
[1730623189116,1.5871,2453.1,2452.8,4.07686]
[1730623189269,1.5871,2453.1,2452.9,0.17689513]
[1730623189475,0.566342,2453.0,2452.6,8.43737871]
[1730623189778,5.66366,2453.1,2452.7,0.17689153]
[1730623189977,5.66366,2453.1,2452.8,0.17689153]
[1730623190173,5.66366,2453.1,2452.7,4.07713]
[1730623190375,5.66366,2453.1,2452.8,0.17689007]
[1730623190609,1.5871,2453.1,2452.9,0.17688613]
[1730623190814,1.5871,2453.1,2452.7,4.07713]
[1730623190995,1.5871,2453.1,2452.8,0.17688168]
[1730623191201,1.5871,2453.1,2452.9,0.17688168]
[1730623191414,1.5871,2453.1,2452.7,4.07713]
[1730623191573,1.5871,2453.1,2452.8,0.17688639]
[1730623191771,1.5871,2453.1,2452.9,0.17688639]
[1730623192001,1.5871,2453.1,2452.7,4.07713]
[1730623192201,1.5871,2453.1,2452.8,0.17688532]
[1730623192413,1.5871,2453.1,2452.7,4.07713]
[1730623192608,1.5871,2453.1,2452.8,4.25381456]
[1730623192814,1.5871,2453.3,2452.9,1.53498456]
[1730623193019,1.5871,2453.3,2452.9,1.3581]
[1730623193188,1.5871,2453.3,2453.0,0.10177277]
[1730623193393,1.5871,2453.3,2452.9,5.4348]
[1730623194013,1.5871,2453.3,2452.9,5.71777251]
[1730623194881,1.5871,2453.3,2452.9,5.71777084]
[1730623195188,1.5871,2453.3,2453.0,4.07661]
[1730623195687,1.5871,2453.3,2452.9,5.4348]
[1730623195902,1.5871,2453.3,2453.0,4.0766]
[1730623196429,1.5871,2453.3,2452.9,1.3581]
[1730623196602,1.5871,2453.3,2452.9,5.43488]
[1730623196803,1.5871,2453.3,2452.9,9.51166]
[1730623197009,1.5871,2453.3,2452.9,5.43488]
[1730623197202,5.5913,2453.7,2453.2,4.07623]
[1730623197412,5.5913,2453.7,2453.2,4.0763]
[1730623197587,5.5913,2453.7,2453.3,4.07613]
[1730623201615,1.5158,2453.7,2453.3,8.15216]
[1730623201823,1.28327584,2453.4,2453.3,5.60953]
[1730623201991,1.28327584,2453.5,2453.4,4.07597]
[1730623202429,0.85529229,2453.5,2453.4,4.15748212]
[1730623202629,0.85529229,2453.6,2453.4,4.62604413]
[1730623202794,0.85529229,2453.6,2453.5,4.07581]
[1730623203410,0.85529229,2453.6,2453.5,4.1573175]
[1730623204311,0.85529229,2453.7,2453.6,4.07564]
[1730623204736,0.85529229,2453.7,2453.6,5.60914]
[1730623204941,0.85529229,2453.7,2453.6,6.3739604]
[1730623205123,0.85529229,2453.7,2453.6,6.45546468]
[1730623205329,1.61963523,2453.8,2453.7,4.07547]
[1730623206235,2.04761878,2453.8,2453.7,4.07547]
[1730623206566,1.61861176,2453.8,2453.7,4.07547]
[1730623207726,1.61861176,2453.8,2453.7,5.20191711]
[1730623208059,1.28327584,2453.9,2453.8,4.07531]
[1730623208060,0.85426882,2453.9,2453.8,4.07531]
[1730623208259,0.85426882,2454.0,2453.8,4.07531]
[1730623208468,0.85426882,2454.0,2453.9,4.07514]
[1730623209315,0.85426882,2454.1,2454.0,4.07497]
[1730623210322,0.91522262,2454.2,2453.9,4.58926182]
[1730623210521,0.91522262,2454.2,2454.1,4.07481]
[1730623212033,0.0609538,2454.2,2454.1,4.07481]
[1730623214618,0.0609538,2454.2,2454.1,4.15629881]
[1730623216221,0.0609538,2454.2,2454.1,5.2517436]
[1730623219266,0.85426882,2454.7,2454.5,1.504]
[1730623219477,0.85426882,2455.2,2454.8,1.504]
[1730623219632,0.85426882,2455.3,2455.0,4.07331]
[1730623219825,0.91522262,2455.4,2455.0,4.07331]
[1730623220026,0.0609538,2455.4,2455.0,4.07331]
[1730623220572,0.0609538,2455.4,2455.0,4.07326]
[1730623221651,0.0609538,2455.4,2454.9,4.07348]
[1730623221868,4.07321,2455.1,2454.6,4.07395]
[1730623222068,4.07321,2455.1,2454.7,0.407395]
[1730623222221,1.5003,2455.0,2454.7,0.407395]
[1730623223170,1.5875,2455.3,2454.8,1.594]
[1730623223398,1.5875,2455.3,2454.9,4.07339]
[1730623223522,0.0609538,2455.4,2455.0,4.0733]
[1730623223725,0.0609538,2455.4,2454.9,0.6156258]
[1730623223925,4.1336338,2455.4,2454.9,4.6890258]
[1730623225184,4.1336338,2455.4,2455.0,4.07331]
[1730623225326,4.1336338,2455.4,2455.0,5.10896758]
[1730623225969,4.1336338,2455.4,2455.0,1.03565758]
[1730623226639,8.2063638,2455.4,2454.9,4.07348]
[1730623226846,5.6605,2455.2,2454.7,4.07381]
[1730623227041,5.6605,2455.2,2454.8,4.0736]
[1730623227671,5.6605,2455.2,2454.7,4.07381]
[1730623228176,5.6605,2455.2,2454.7,8.14754]
[1730623228325,5.6605,2455.2,2454.7,8.14745]
[1730623228729,5.6605,2455.2,2454.7,4.07372]
[1730623228929,5.6605,2455.2,2454.7,4.640492]
[1730623229370,5.6605,2455.2,2454.7,8.714232]
[1730623229573,9.73364,2455.2,2454.7,4.640492]
[1730623229727,4.07339,2455.0,2454.5,4.07403]
[1730623230066,5.66059,2455.2,2454.6,4.07388]
[1730623230067,4.07317,2455.1,2454.6,4.07388]
[1730623230971,1.5875,2455.2,2454.7,4.0738]
[1730623231175,5.66049,2455.2,2454.7,8.55491]
[1730623231469,5.66049,2455.2,2454.7,4.48111]
[1730623231766,9.73356,2455.2,2454.7,4.48111]
[1730623233744,4.07318,2455.1,2454.7,4.48111]
[1730623234046,4.07318,2455.1,2454.7,4.07373]
[1730623238908,5.66049,2455.2,2454.6,4.07396]
[1730623239096,4.07334,2455.0,2454.6,4.07396]
[1730623239410,4.07317,2455.1,2454.6,4.07396]
[1730623240307,4.07317,2455.1,2454.7,4.0738]
[1730623241099,4.07317,2455.1,2454.6,4.07393]